Workbook

Sheet Temperatur
H2: Temperatur | I2: =Werte!B39 -> September | K2: =Werte!C39 -> 2021
P3: Min/Max Temperatur
C32: Durchschnitt | D32: Min: | E32: =Werte!E34 -> 12.32 | F32: °C | H32: Temperatur | I32: Min: | J32: =Werte!E33 -> 7.900000095 | K32: °C am | L32: =Werte!E36 -> 2021-09-30 | O32: Anzahl Frosttage: | Q32: =Werte!F35 -> 0
C34: Durchschnitt | D34: Max: | E34: =Werte!F34 -> 21.70666647 | F34: °C | H34: Temperatur | I34: Max: | J34: =Werte!F33 -> 28.79999924 | K34: °C am | L34: =Werte!F36 -> 2021-09-08
C36: Durchschnitt | D36: Monat: | E36: =Werte!D33 -> 16.9577778 | F36: °C | H36: Bodentemperatur | I36: Min: | J36: =Werte!Q33 -> 7.2 | K36: °C am | L36: =Werte!Q36 -> 2021-09-30

Sheet Niederschlag_Schnee
J2: Niederschlag | M2: =Werte!B39 -> September | N2: =Werte!C39 -> 2021
C31: Niederschlag : | E31: =Werte!G34 -> 33.80000043 | F31: mm | H31: Niederschlag Max : | J31: =Werte!G33 -> 21.80000021 | K31: mm | L31: am | M31: =Werte!G36 -> 2021-09-15 | O31: Regentage | P31: : | R31: =Werte!Z38 -> 11
C33: Schneefall : | E33: =Werte!H34 -> 0 | F33: cm | H33: Schneemenge Max : | J33: =Werte!H33 -> 0 | K33: cm | L33: am | M33: =Werte!H36 ->  | O33: Neuschnee / | P33: Schneetage : | R33: =Werte!H38 -> 0 | S33: =Werte!I37 -> 0

Sheet Sonne
F2: Sonne | G2: =Werte!B39 -> September | H2: =Werte!C39 -> 2021
C29: Sonnenscheindauer Std.: | E29: gesamt | F29: =Werte!V34 -> 138.5 | G29: Std. | H29: Max: | I29: =Werte!V33 -> 7.666666667 | J29: Std. | K29: am | L29: =Werte!V36 -> 2021-09-03
C31: Sonnenenergie in Kw/h: | E31: gesamt | F31: =Werte!J34 -> 76.31671103 | G31: KW/h | H31: Max: | I31: =Werte!J33 -> 4.61057173 | J31: KW/h | K31: am | L31: =Werte!J36 -> 2021-09-03
C33: Sonnentage: | F33: =Werte!K35 -> 30

Sheet Luftwerte
F2: Luftwerte | G2: =Werte!B39 -> September | H2: =Werte!C39 -> 2021
C18: Luftdruck: | D18: Min: | E18: =Werte!L33 -> 1006.700012 | F18: mbar am | G18: =Werte!L36 -> 2021-09-09 | H18: Max: | I18: =Werte!L34 -> 1026.300049 | J18: mbar | K18: am | L18: =Werte!L37 -> 2021-09-21
C20: Luftfeuchte: | D20: Min.: | E20: =Werte!R33 -> 54 | F20: % am | G20: =Werte!R36 -> 2021-09-09 | H20: Max: | I20: =Werte!R35 -> 95 | J20: % | K20: am | L20: =Werte!R37 -> 2021-09-15

Sheet Monitor
B2: =Werte!B39 -> September | D2: =Werte!C39 -> 2021
B3: Temperatur
B4: Monat | C4: =Werte!D33 -> 16.9577778 | D4: °C | E4: Ø | F4: =Werte!B39 -> September
B5: Statistik | C5: 8.1 | D5: °C | F5: Ø 1988-2019
B6: Max | C6: =Werte!F34 -> 21.70666647 | D6: °C | E6: Ø | F6: =Werte!B39 -> September
B7: Statistik | C7: 13.5 | D7: °C | E7: =B2 -> September | F7: 1991
B8: Min | C8: =Werte!E34 -> 12.32 | D8: °C | E8: Ø | F8: =Werte!B39 -> September
B9: Statistik | C9: 1.5 | D9: °C | E9: =B2 -> September
B10: Max | C10: =Werte!F33 -> 28.79999924 | D10: °C | E10: am | F10: =Werte!F36 -> 2021-09-08
B11: Statistik | C11: 19.6 | D11: °C | F11: Ø 1988-2019
B12: Min | C12: =Werte!E33 -> 7.900000095 | D12: °C | E12: am | F12: =Werte!E36 -> 2021-09-30
B13: Statistik | C13: -3.1 | D13: °C | F13: Ø 1988-2019
B14: Frost | C14: =Werte!AB38 -> 0 | D14: Tage | F14: März
B15: Statistik | C15: 7 | D15: Tage | F15: Ø 1988-2019
B16: Bodentemperatur
B17: Monat | C17: =Werte!Q34 -> 11.58 | D17: °C | E17: Ø | F17: =Werte!B39 -> September
B18: Statistik | C18: -4.1 | D18: °C | F18: Ø 1995-2019
B19: Min | C19: =Werte!Q33 -> 7.2 | D19: °C | E19: am | F19: =Werte!Q36 -> 2021-09-30
B21: Niederschlag
B22: Gesamt | C22: =Werte!G34 -> 33.80000043 | D22: mm | F22: =Werte!B39 -> September
B23: Statistik | C23: 60.5 | D23: mm | F23: Ø 1988-2019
B24: Max | C24: =Werte!G33 -> 21.80000021 | D24: mm | E24: am | F24: =Werte!G36 -> 2021-09-15
B25: Statistik | C25: 12.3 | D25: mm | E25: =B2 -> September | F25: 1993
B26: MIN
B27: Statistik
B28: Regen | C28: =Werte!Z38 -> 11 | D28: Tage | F28: Tage
B29: Statistik | C29: 17 | D29: Tage | F29: Ø 1988-2019
B30: Schnee | C30: =Werte!H34 -> 0 | D30: cm | F30: =Werte!B39 -> September
B31: Statistik | C31: 6.4 | D31: cm | F31: Ø 1988-2019
B32: Max | C32: =Werte!H33 -> 0 | D32: cm | E32: am | F32: =Werte!H36 -> 
B33: Statistik | C33: 19.7 | D33: cm | E33: =B2 -> September | F33: 2013
B34: Schnee an | C34: =Werte!H38 -> 0 | D34: Tage | F34: =B2 -> September
B35: Statistik | C35: 1 | D35: Tage | F35: Ø 1988-2019
B37: Luftfeuchte
B38: Monat | C38: =Werte!R33 -> 54 | D38: % | E38: Ø | F38: =Werte!B39 -> September
B40: Max | C40: =Werte!R35 -> 95 | D40: % | E40: am | F40: =Werte!R37 -> 2021-09-15
B42: Min | C42: =Werte!R33 -> 54 | D42: % | E42: am | F42: =Werte!R36 -> 2021-09-09
B44: Luftdruck
B45: Monat | C45: =Werte!L34 -> 1026.300049 | D45: mbar | F45: =Werte!B39 -> September
B46: Max | C46: =Werte!L34 -> 1026.300049 | D46: mbar | F46: =Werte!L37 -> 2021-09-21
B47: Min | C47: =Werte!L33 -> 1006.700012 | D47: mbar | F47: =Werte!L36 -> 2021-09-09
B49: Sonne
B50: Gesamt | C50: =Werte!V34 -> 138.5 | D50: Std. | F50: =Werte!B39 -> September
B51: Statistik | C51: 103.22 | D51: Std. | F51: Ø 1988-2019
B52: Max | C52: =Werte!V33 -> 7.666666667 | D52: Std. | E52: am | F52: =Werte!V36 -> 2021-09-03
B53: Statistik | F53: Ø 1988-2019
B54: Gesamt | C54: =Werte!J34 -> 76.31671103 | D54: KW | F54: =Werte!B39 -> September
B55: Statistik | C55: 66.09 | D55: KW | F55: Ø 1988-2019
B56: Max | C56: =Werte!J33 -> 4.61057173 | D56: KW | E56: am | F56: =Werte!J36 -> 2021-09-03
B58: Sonne an | C58: =Werte!AC38 -> 30 | D58: Tagen | F58: Tagen
B59: Statistik | C59: 25 | F59: Ø 1988-2019
B61: Wind
B62: Monat | C62: =Werte!S39 -> 13.43888898 | D62: Kmh | E62: Ø | F62: =Werte!B39 -> September
B63: Max | C63: =Werte!S35 -> 38.59999847 | D63: Kmh
B64: Min | C64: =Werte!S33 -> 0 | D64: Kmh
D65: Kmh

Sheet Werte
A1: Datum | B1: °C 6:50Uhr | C1: °C 12:50Uhr | D1: °C 18:50Uhr | E1: °C Min | F1: °C Max | G1: Regen mm | H1: Schnee cm | I1: Schnee Höhe cm | J1: Sonne KW/m2 | K1: Sonne Std_Min | L1: hPa | M1: Regen Vorm. | N1: Regen Nachm. | O1: Bemerk. vorm. | P1: Bemerk. nachm. | Q1: Boden- temperatur | R1: Lftfeuchte % | S1: Wind-Morgen Max/ Kmh | T1: Wind-Mittag Max/ Kmh | U1: Wind-Abend Max/Kmh | V1: Sonne | X1: Tages-ø °C | Y1: Min/Max Tages-ø°C | Z1: Regen- tage | AA1: Schnee Tage | AB1: Frost- tage | AC1: Sonnen-tage
A2: 2021-09-01 | B2: 14.30000019 | C2: 16.20000076 | D2: 17.89999962 | E2: 13.39999962 | F2: 19.79999924 | G2: 0 | H2: 0 | I2: 0 | J2: 1.603175138 | K2: 0.06944444444 | L2: 1024.599976 | M2: 1 | N2: 1 | Q2: 12 | R2: 79 | S2: 6.400000095 | T2: 6.400000095 | U2: 11.30000019 | V2: =IF(K2>0,(W2*24),"") -> 1.666666667 | W2: =SUM(K2) -> 0.06944444444 | X2: =IF(B2<>0,((B2+C2+D2+D2)/4),"") -> 16.57500005 | Y2: =IF(R2>0,AVERAGE(E2:F2),"") -> 16.59999943 | Z2: =IF(M2+N2>2,1,"") ->  | AA2: =IF(I2>0,1,"") ->  | AB2: =IF(E2<0,1,"") ->  | AC2: =IF(K2>0,1,"") -> 1
A3: 2021-09-02 | B3: 10.60000038 | C3: 19.20000076 | D3: 20.79999924 | E3: 10.10000038 | F3: 24.10000038 | G3: 0 | H3: 0 | I3: 0 | J3: 3.448220163 | K3: 0.2638888889 | L3: 1022.5 | M3: 1 | N3: 1 | Q3: 9.6 | R3: 74 | S3: 6.400000095 | T3: 6.400000095 | U3: 9.699999809 | V3: =IF(K3>0,(W3*24),"") -> 6.333333333 | W3: 0.2638888889 | X3: =IF(B3<>0,((B3+C3+D3+D3)/4),"") -> 17.8499999 | Y3: =IF(R3>0,AVERAGE(E3:F3),"") -> 17.10000038 | AC3: 1
A4: 2021-09-03 | B4: 11.69999981 | C4: 22.29999924 | D4: 21.39999962 | E4: 11.39999962 | F4: 25.60000038 | G4: 0 | H4: 0 | I4: 0 | J4: 4.61057173 | K4: 0.3194444444 | L4: 1016.400024 | M4: 1 | N4: 1 | Q4: 10.9 | R4: 68 | S4: 3.200000048 | T4: 6.400000095 | U4: 9.699999809 | V4: 7.666666667 | W4: 0.3194444444 | X4: 19.19999957 | Y4: 18.5 | AC4: 1
A5: 2021-09-04 | B5: 13 | C5: 19 | D5: 20.10000038 | E5: 12.30000019 | F5: 23.79999924 | G5: 0 | H5: 0 | I5: 0 | J5: 4.257796187 | K5: 0.2916666667 | L5: 1015.5 | M5: 1 | N5: 1 | Q5: 10.9 | R5: 70 | S5: 6.400000095 | T5: 8 | U5: 9.699999809 | V5: 7 | W5: 0.2916666667 | X5: 18.05000019 | Y5: 18.04999971 | AC5: 1
A6: 2021-09-05 | B6: 9.699999809 | C6: 21.5 | D6: 21.10000038 | E6: 9.699999809 | F6: 24.89999962 | G6: 0 | H6: 0 | I6: 0 | J6: 4.524972598 | K6: 0.3194444444 | L6: 1018.900024 | M6: 1 | N6: 1 | Q6: 8.9 | R6: 65 | S6: 3.200000048 | T6: 11.30000019 | U6: 9.699999809 | V6: 7.666666667 | W6: 0.3194444444 | X6: 18.35000014 | Y6: 17.29999971 | AC6: 1
A7: 2021-09-06 | B7: 11 | C7: 21.29999924 | D7: 21.79999924 | E7: 10.69999981 | F7: 25.29999924 | G7: 0 | H7: 0 | I7: 0 | J7: 3.620351263 | K7: 0.2638888889 | L7: 1021 | M7: 1 | N7: 1 | Q7: 10.1 | R7: 65 | S7: 4.800000191 | T7: 6.400000095 | U7: 6.400000095 | V7: 6.333333333 | W7: 0.2638888889 | X7: 18.97499943 | Y7: 17.99999952 | AC7: 1
A8: 2021-09-07 | B8: 15.80000019 | C8: 22.70000076 | D8: 23.29999924 | E8: 14.60000038 | F8: 27.10000038 | G8: 0 | H8: 0 | I8: 0 | J8: 3.578601329 | K8: 0.3055555556 | L8: 1019.599976 | M8: 1 | N8: 1 | Q8: 12.9 | R8: 55 | S8: 0 | T8: 8 | U8: 8 | V8: 7.333333333 | W8: 0.3055555556 | X8: 21.27499986 | Y8: 20.85000038 | AC8: 1
A9: 2021-09-08 | B9: 13.89999962 | C9: 25.60000038 | D9: 25.10000038 | E9: 13.39999962 | F9: 28.79999924 | G9: 0 | H9: 0 | I9: 0 | J9: 4.335581715 | K9: 0.3194444444 | L9: 1011.5 | M9: 1 | N9: 1 | Q9: 12.5 | R9: 57 | S9: 4.800000191 | T9: 14.5 | U9: 11.30000019 | V9: 7.666666667 | W9: 0.3194444444 | X9: 22.42500019 | Y9: 21.09999943 | AC9: 1
A10: 2021-09-09 | B10: 17.29999924 | C10: 25.79999924 | D10: 25.89999962 | E10: 15.60000038 | F10: 28.39999962 | G10: 0 | H10: 0 | I10: 0 | J10: 3.958665889 | K10: 0.2847222222 | L10: 1006.700012 | M10: 1 | N10: 1 | Q10: 13.9 | R10: 54 | S10: 6.400000095 | T10: 11.30000019 | U10: 20.89999962 | V10: 6.833333333 | W10: 0.2847222222 | X10: 23.72499943 | Y10: 22 | AC10: 1
A11: 2021-09-10 | B11: 19.39999962 | C11: 24.39999962 | D11: 19.70000076 | E11: 17.39999962 | F11: 25.70000076 | G11: 2.00000003 | H11: 0 | I11: 0 | J11: 2.686108448 | K11: 0.1944444444 | L11: 1010 | M11: 1 | N11: 4 | Q11: 17 | R11: 73 | S11: 14.5 | T11: 16.10000038 | U11: 24.10000038 | V11: 4.666666667 | W11: 0.1944444444 | X11: 20.80000019 | Y11: 21.55000019 | Z11: 1 | AC11: 1
A12: 2021-09-11 | B12: 17.10000038 | C12: 18.60000038 | D12: 20.10000038 | E12: 16.29999924 | F12: 21.39999962 | G12: 0 | H12: 0 | I12: 0 | J12: 1.462648042 | K12: 0.08333333333 | L12: 1012.900024 | M12: 2 | N12: 1 | Q12: 15.5 | R12: 85 | S12: 9.699999809 | T12: 20.89999962 | U12: 24.10000038 | V12: 2 | W12: 0.08333333333 | X12: 18.97500038 | Y12: 18.84999943 | Z12: 1 | AC12: 1
A13: 2021-09-12 | B13: 16.89999962 | C13: 19.20000076 | D13: 19.39999962 | E13: 14.60000038 | F13: 21.20000076 | G13: 0 | H13: 0 | I13: 0 | J13: 3.378248171 | K13: 0.3125 | L13: 1013.700012 | M13: 1 | N13: 1 | Q13: 13.6 | R13: 70 | S13: 16.10000038 | T13: 22.5 | U13: 22.5 | V13: 7.5 | W13: 0.3125 | X13: 18.7249999 | Y13: 17.90000057 | AC13: 1
A14: 2021-09-13 | B14: 13.30000019 | C14: 15.89999962 | D14: 17.70000076 | E14: 12.80000019 | F14: 21.60000038 | G14: 0.400000006 | H14: 0 | I14: 0 | J14: 1.672680666 | K14: 0.1111111111 | L14: 1015.200012 | M14: 1 | N14: 2 | Q14: 12 | R14: 93 | S14: 9.699999809 | T14: 6.400000095 | U14: 8 | V14: 2.666666667 | W14: 0.1111111111 | X14: 16.15000033 | Y14: 17.20000029 | Z14: 1 | AC14: 1
A15: 2021-09-14 | B15: 11.10000038 | C15: 21.70000076 | D15: 22.29999924 | E15: 10.89999962 | F15: 26.29999924 | G15: 0.200000003 | H15: 0 | I15: 0 | J15: 3.487287849 | K15: 0.2708333333 | L15: 1010.5 | M15: 1 | N15: 1 | Q15: 10.1 | R15: 68 | S15: 3.200000048 | T15: 8 | U15: 14.5 | V15: 6.5 | W15: 0.2708333333 | X15: 19.3499999 | Y15: 18.59999943 | AC15: 1
A16: 2021-09-15 | B16: 18.89999962 | C16: 18.5 | D16: 19.60000038 | E16: 16.20000076 | F16: 21.29999924 | G16: 21.80000021 | H16: 0 | I16: 0 | J16: 0.8584398209 | K16: 0.04166666667 | L16: 1007.200012 | M16: 3 | N16: 4 | Q16: 15.5 | R16: 95 | S16: 8 | T16: 4.800000191 | U16: 11.30000019 | V16: 1 | W16: 0.04166666667 | X16: 19.1500001 | Y16: 18.75 | Z16: 1 | AC16: 1
A17: 2021-09-16 | B17: 12.69999981 | C17: 16.5 | D17: 18 | E17: 12.69999981 | F17: 19.60000038 | G17: 0.400000006 | H17: 0 | I17: 0 | J17: 1.56235813 | K17: 0.09027777778 | L17: 1012.900024 | M17: 3 | N17: 1 | Q17: 12 | R17: 88 | S17: 16.10000038 | T17: 16.10000038 | U17: 19.29999924 | V17: 2.166666667 | W17: 0.09027777778 | X17: 16.29999995 | Y17: 16.1500001 | Z17: 1 | AC17: 1
A18: 2021-09-17 | B18: 12.80000019 | C18: 16.39999962 | D18: 18.20000076 | E18: 12.69999981 | F18: 19.79999924 | G18: 0 | H18: 0 | I18: 0 | J18: 1.452152236 | K18: 0.06944444444 | L18: 1012.099976 | M18: 1 | N18: 1 | Q18: 11.7 | R18: 88 | S18: 8 | T18: 9.699999809 | U18: 11.30000019 | V18: 1.666666667 | W18: 0.06944444444 | X18: 16.40000033 | Y18: 16.24999952 | AC18: 1
A19: 2021-09-18 | B19: 11.30000019 | C19: 19.39999962 | D19: 17.60000038 | E19: 10.80000019 | F19: 22.39999962 | G19: 0.200000003 | H19: 0 | I19: 0 | J19: 2.734389149 | K19: 0.2083333333 | L19: 1014.099976 | M19: 2 | N19: 1 | Q19: 10.1 | R19: 69 | S19: 0 | T19: 8 | U19: 8 | V19: 5 | W19: 0.2083333333 | X19: 16.47500014 | Y19: 16.5999999 | Z19: 1 | AC19: 1
A20: 2021-09-19 | B20: 14 | C20: 17.60000038 | D20: 14.80000019 | E20: 11.89999962 | F20: 18.20000076 | G20: 0 | H20: 0 | I20: 0 | J20: 1.826035963 | K20: 0.1458333333 | L20: 1014.200012 | M20: 1 | N20: 1 | Q20: 12.9 | R20: 72 | S20: 8 | T20: 8 | U20: 14.5 | V20: 3.5 | W20: 0.1458333333 | X20: 15.30000019 | Y20: 15.05000019 | AC20: 1
A21: 2021-09-20 | B21: 9.899999619 | C21: 14.60000038 | D21: 13.39999962 | E21: 9.600000381 | F21: 15.69999981 | G21: 0 | H21: 0 | I21: 0 | J21: 1.459032826 | K21: 0.1041666667 | L21: 1021 | M21: 1 | N21: 1 | Q21: 13.4 | R21: 60 | S21: 9.699999809 | T21: 11.30000019 | U21: 11.30000019 | V21: 2.5 | W21: 0.1041666667 | X21: 12.82499981 | Y21: 12.6500001 | AC21: 1
A22: 2021-09-21 | B22: 8.800000191 | C22: 15.60000038 | D22: 16.10000038 | E22: 8.300000191 | F22: 18.10000038 | G22: 0 | H22: 0 | I22: 0 | J22: 2.221144527 | K22: 0.2361111111 | L22: 1026.300049 | M22: 1 | N22: 1 | Q22: 7.7 | R22: 62 | S22: 3.200000048 | T22: 11.30000019 | U22: 19.29999924 | V22: 5.666666667 | W22: 0.2361111111 | X22: 14.15000033 | Y22: 13.20000029 | AC22: 1
A23: 2021-09-22 | B23: 10.69999981 | C23: 17 | D23: 18.10000038 | E23: 10.60000038 | F23: 21.29999924 | G23: 0 | H23: 0 | I23: 0 | J23: 2.812291311 | K23: 0.2847222222 | L23: 1022.099976 | M23: 1 | N23: 1 | Q23: 7.7 | R23: 78 | S23: 4.800000191 | T23: 17.70000076 | U23: 17.70000076 | V23: 6.833333333 | W23: 0.2847222222 | X23: 15.97500014 | Y23: 15.94999981 | AC23: 1
A24: 2021-09-23 | B24: 10.30000019 | C24: 16.60000038 | D24: 16.89999962 | E24: 10.30000019 | F24: 17.29999924 | G24: 1.400000021 | H24: 0 | I24: 0 | J24: 1.04643126 | K24: 0.04861111111 | L24: 1011.299988 | M24: 1 | N24: 3 | Q24: 9.2 | R24: 80 | S24: 9.699999809 | T24: 29 | U24: 32.20000076 | V24: 1.166666667 | W24: 0.04861111111 | X24: 15.17499995 | Y24: 13.79999971 | Z24: 1 | AC24: 1
A25: 2021-09-24 | B25: 13.60000038 | C25: 15.89999962 | D25: 17.89999962 | E25: 13.30000019 | F25: 18.89999962 | G25: 0 | H25: 0 | I25: 0 | J25: 0.8402470985 | K25: 0.02777777778 | L25: 1011.200012 | M25: 1 | N25: 1 | Q25: 12.4 | R25: 93 | S25: 25.70000076 | T25: 22.5 | U25: 25.70000076 | V25: 0.6666666667 | W25: 0.02777777778 | X25: 16.32499981 | Y25: 16.0999999 | AC25: 1
A26: 2021-09-25 | B26: 15.39999962 | C26: 20 | D26: 19.10000038 | E26: 15.19999981 | F26: 22.29999924 | G26: 0 | H26: 0 | I26: 0 | J26: 2.925879168 | K26: 0.2708333333 | L26: 1012.799988 | M26: 1 | N26: 1 | Q26: 14.4 | R26: 80 | S26: 14.5 | T26: 17.70000076 | U26: 16.10000038 | V26: 6.5 | W26: 0.2708333333 | X26: 18.4000001 | Y26: 18.74999952 | AC26: 1
A27: 2021-09-26 | B27: 15.5 | C27: 21.79999924 | D27: 21.20000076 | E27: 14.89999962 | F27: 23.79999924 | G27: 0 | H27: 0 | I27: 0 | J27: 2.635495376 | K27: 0.2291666667 | L27: 1011.700012 | M27: 1 | N27: 1 | Q27: 13.3 | R27: 75 | S27: 4.800000191 | T27: 17.70000076 | U27: 22.5 | V27: 5.5 | W27: 0.2291666667 | X27: 19.92500019 | Y27: 19.34999943 | AC27: 1
A28: 2021-09-27 | B28: 15.69999981 | C28: 20.20000076 | D28: 18 | E28: 12.60000038 | F28: 21.39999962 | G28: 3.000000075 | H28: 0 | I28: 0 | J28: 1.43839108 | K28: 0.09722222222 | L28: 1011.299988 | M28: 1 | N28: 3 | Q28: 12 | R28: 77 | S28: 11.30000019 | T28: 20.89999962 | U28: 32.20000076 | V28: 2.333333333 | W28: 0.09722222222 | X28: 17.97500014 | Y28: 17 | Z28: 1 | AC28: 1
A29: 2021-09-28 | B29: 10.69999981 | C29: 16 | D29: 15.80000019 | E29: 10.39999962 | F29: 17.89999962 | G29: 0.200000003 | H29: 0 | I29: 0 | J29: 2.614853634 | K29: 0.2847222222 | L29: 1018.200012 | M29: 2 | N29: 1 | Q29: 9.6 | R29: 82 | S29: 24.10000038 | T29: 16.10000038 | U29: 17.70000076 | V29: 6.833333333 | W29: 0.2847222222 | X29: 14.57500005 | Y29: 14.14999962 | Z29: 1 | AC29: 1
A30: 2021-09-29 | B30: 11.89999962 | C30: 13.10000038 | D30: 9.800000191 | E30: 9 | F30: 14.10000038 | G30: 4.200000077 | H30: 0 | I30: 0 | J30: 0.6927227974 | K30: 0.006944444444 | L30: 1014.200012 | M30: 1 | N30: 3 | Q30: 8.4 | R30: 91 | S30: 11.30000019 | T30: 24.10000038 | U30: 38.59999847 | V30: 0.1666666667 | W30: =SUM(K30) -> 0.006944444444 | X30: =IF(B30<>0,((B30+C30+D30+D30)/4),"") -> 11.1500001 | Y30: =IF(R30>0,AVERAGE(E30:F30),"") -> 11.55000019 | Z30: =IF(M30+N30>2,1,"") -> 1 | AA30: =IF(I30>0,1,"") ->  | AB30: =IF(E30<0,1,"") ->  | AC30: =IF(K30>0,1,"") -> 1
A31: 2021-09-30 | B31: 8.699999809 | C31: 13.60000038 | D31: 12.89999962 | E31: 7.900000095 | F31: 15.10000038 | G31: 0 | H31: 0 | I31: 0 | J31: 2.571937465 | K31: 0.2152777778 | L31: 1019.799988 | M31: 2 | N31: 1 | Q31: 7.2 | R31: 73 | S31: 20.89999962 | T31: 25.70000076 | U31: 33.79999924 | V31: 5.166666667 | W31: =SUM(K31) -> 0.2152777778 | X31: 12.02499986 | Y31: 11.50000024 | Z31: 1 | AC31: 1
V32: =IF(K32>0,(W32*24),"") ->  | W32: =SUM(K32) -> 0 | X32: =IF(B32<>0,((B32+C32+D32+D32)/4),"") ->  | Y32: =IF(R32>0,AVERAGE(E32:F32),"") ->  | Z32: =IF(M32+N32>2,1,"") ->  | AA32: =IF(I32>0,1,"") ->  | AB32: =IF(E32<0,1,"") ->  | AC32: =IF(K32>0,1,"") -> 
A33: Min/Max | D33: =IF(B2<>0,AVERAGE(B2:D32),"") -> 16.9577778 | E33: =IF(E2<>0,MIN(E2:E32),"") -> 7.900000095 | F33: =IF(F2<>0,MAX(F2:F32),"") -> 28.79999924 | G33: =IF(G34>0,MAX(G2:G32),"") -> 21.80000021 | H33: =IF(H39<>0,MAX(H2:H32),"0") -> 0 | I33: =IF(I37>0,MAX(I2:I32),"0") -> 0 | J33: =IF(J2<>0,MAX(J2:J32),"") -> 4.61057173 | K33: =IF(K2<>0,MAX(K2:K32),"") -> 0.3194444444 | L33: =IF(L2>0,MIN(L2:L32),"") -> 1006.700012 | Q33: =IF(Q3<>0,MIN(Q2:Q32),"") -> 7.2 | R33: =IF(R2>0,MIN(R2:R32),"") -> 54 | S33: =IF(S2>0,MIN(S2:U32),"") -> 0 | T33: =IF(T2>0,MIN(T2:T32),"") -> 4.800000191 | U33: =IF(U2>0,MIN(U2:U32),"") -> 6.400000095 | V33: =IF(V39<>0,MAX(V2:V31),"") -> 7.666666667
A34: Summe/Mittel | E34: =IF(E2<>0,AVERAGE(E2:E32),"") -> 12.32 | F34: =IF(F2<>0,AVERAGE(F2:F32),"") -> 21.70666647 | G34: =SUM(G2:G32) -> 33.80000043 | H34: =IF(H39>0,SUM(H2:H32),"0") -> 0 | I34: =IF(I2>0,SUM(I2:I32),"0") -> 0 | J34: =IF(J2>0,SUM(J2:J32),"") -> 76.31671103 | K34: =IF(K2>0,SUM(K2:K32),"") -> 5.770833333 | L34: =IF(L2>0,MAX(L2:L32),"") -> 1026.300049 | Q34: =IF(Q3<>0,AVERAGE(Q2:Q32),"") -> 11.58 | R34: =IF(R2<>0,AVERAGE(R2:R32),"") -> 74.63333333 | S34: =IF(S2<>0,AVERAGE(S2:U32),"") -> 13.43888898 | V34: =IF(V39>0,SUM(V2:V32),"") -> 138.5 | W34: =IF(W2>0,SUM(W2:W32),"") -> 5.770833333 | X34: =IF(L2>0,AVERAGE(X2:X32),"") -> 17.41833336 | Y34: =IF(L2>0,AVERAGE(Y2:Y32),"") -> 17.01333323
A35: Frosttage/ Sonnentage | F35: =COUNT(AB2:AB32) -> 0 | K35: =COUNT(AC2:AC32) -> 30 | L35: =IF(L2>0,AVERAGE(L2:L32),"") -> 1015.313336 | R35: =MAX(R2:R32) -> 95 | S35: =MAX(S2:U32) -> 38.59999847
E36: =IF(B2<>0,INDEX(A2:A32,MATCH(E33,E2:E32,0)),"") -> 2021-09-30 | F36: =IF(F2<>0,(INDEX(A2:A32,MATCH(F33,F2:F32,0))),"") -> 2021-09-08 | G36: =IF(G34>0,(INDEX(A2:A32,MATCH(G33,G2:G32,0))),"") -> 2021-09-15 | H36: =IF(H34>=0,(INDEX(A2:A32,MATCH(H33,H2:H32,0))),"") ->  | I36: =IF(I2<>0,(INDEX(D2:D32,MATCH(I33,I2:I32,0))),"") ->  | J36: =IF(J2<>0,(INDEX(A2:A32,MATCH(J33,J2:J32,0))),"") -> 2021-09-03 | K36: =IF(K2<>0,(INDEX(A2:A32,MATCH(K33,K2:K32,0))),"") -> 2021-09-03 | L36: =IF(L2<>0,(INDEX(A2:A32,MATCH(L33,L2:L32,0))),"") -> 2021-09-09 | O36: =IF(O2<>0,(INDEX(J2:J32,MATCH(O33,O2:O32,0))),"") ->  | P36: =IF(P2<>0,(INDEX(K2:K32,MATCH(P33,P2:P32,0))),"") ->  | Q36: =IF(Q3<>0,(INDEX(A2:A32,MATCH(Q33,Q2:Q32,0))),"") -> 2021-09-30 | R36: =IF(R2<>0,(INDEX(A2:A32,MATCH(R33,R2:R32,0))),"") -> 2021-09-09 | V36: =IF(V39<>0,(INDEX(A2:A32,MATCH(V33,V2:V32,0))),"") -> 2021-09-03
A37: Schneetage | I37: =COUNT(AA2:AA32) -> 0 | L37: =IF(L2>0,(INDEX(A2:A32,MATCH(L34,L2:L32,0))),"") -> 2021-09-21 | R37: =IF(R2>0,(INDEX(A2:A32,MATCH(R35,R2:R32,0))),"") -> 2021-09-15
A38: Niederschlag | G38: =COUNTIF(G2:G32,">0") -> 10 | H38: =COUNTIF(H2:H32,">0") -> 0 | Z38: =COUNTIF(Z2:Z32,">0") -> 11 | AA38: =SUM(AA2:AA32) -> 0 | AB38: =SUM(AB2:AB32) -> 0 | AC38: =SUM(AC2:AC32) -> 30
A39: Monat | B39: September | C39: 2021 | H39: =SUM(H2:H32) -> 0 | S39: =AVERAGE(S34:U34) -> 13.43888898 | V39: =SUM(V2:V32) -> 138.5
